{"text_format":"1","workbook":"xlsx","n_sheets":9,"sheets":["Innhold","1.1","1.2","2.1","2.2","2.3","3.0","4.0","5.0"],"not_rendered":{"charts":0,"images":2,"macros":1,"external_links":0,"defined_names":0,"comments":0,"pivot_tables":0},"unopened":[],"bounds":{"document_bytes":16777216,"sheet_cells":100000,"rows_first":2000,"rows_last":500,"rows_between":2000,"halvings":0,"cell_chars":16384,"cell_head_chars":4096},"cells_cut":0,"cells_raw":0,"read":"whole","date_system":"1900"}

{"sheet":"Innhold","index":0,"n_rows":23,"n_cols":13,"rows_kept":23,"cut":false,"hidden":false,"merged":[[4,11,4,12]]}
[]
[]
[]
[]
[null,null,null,null,null,null,null,null,null,null,null,"Innholdsfortegnelse"]
[]
[]
[]
[]
[null,null,null,null,null,null,null,null,null,null,null,"1.0","Ansvarlig kapital"]
[null,null,null,null,null,null,null,null,null,null,null,"1.1","Skjema for offentliggjøring av de viktigste avtalevilkårene for kapitalinstrumenter"]
[null,null,null,null,null,null,null,null,null,null,null,"1.2","Skjema for offentliggjøring av sammensetningen av ansvarlig kapital"]
[]
[null,null,null,null,null,null,null,null,null,null,null,"2.0","Uvektet kjernekapitalandel"]
[null,null,null,null,null,null,null,null,null,null,null,"2.1","Table LRSum: Summary reconciliation of accounting assets and leverage ratio exposures"]
[null,null,null,null,null,null,null,null,null,null,null,"2.2","Table LRCom: Leverage ratio common disclosure"]
[null,null,null,null,null,null,null,null,null,null,null,"2.3","Table LRSpl: Split-up of on balance sheet exposures (excluding derivatives, SFTs and exempted exposures)"]
[]
[null,null,null,null,null,null,null,null,null,null,null,"3.0","Pantsatte og ikke-pantsatte eiendeler"]
[]
[null,null,null,null,null,null,null,null,null,null,null,"4.0","LCR"]
[]
[null,null,null,null,null,null,null,null,null,null,null,"5.0","Offentliggjøring av opplysninger om motsyklisk kapitalbufferkrav"]

{"sheet":"1.1","index":1,"n_rows":61,"n_cols":6,"rows_kept":61,"cut":false,"hidden":false,"merged":[]}
[]
[]
[]
[]
[null,null,"1.0","Ansvarlig kapital"]
[]
[]
[null,null,"1.1","Skjema for offentliggjøring av de viktigste avtalevilkårene for kapitalinstrumenter"]
[]
[]
[null,null,"Skjema for offentliggjøring av de viktigste avtalevilkårene for kapitalinstrumenter"]
[]
[null,null,1,"Utsteder","Eika Gruppen AS","Eika Gruppen AS"]
[null,null,2,"Entydig identifikasjonskode (f.eks. CUSIP, ISIN eller Bloombergs identifikasjonskode for rettede emisjoner)","NO0010837594","NO0010837610"]
[null,null,3,"Gjeldende lovgivning for instrumentet","Finansforetaksloven","Finansforetaksloven"]
[]
[null,null,null,"Behandling etter kapitalregelverket"]
[]
[null,null,4,"Regler som gjelder i overgangsperioden","Tilleggskapital","Annen godkjent kjernekapital"]
[null,null,5,"Regler som gjelder etter overgangsperioden","Tilleggskapital","Annen godkjent kjernekapital"]
[null,null,6,"Medregning på selskaps- eller (del)konsolidert nivå, selskaps- og (del)konsolidert nivå","Selskaps- og konsolidert nivå","Selskaps- og konsolidert nivå"]
[null,null,7,"Instrumenttype (typer skal spesifiseres for hver jurisdiksjon)","Ansvarlig lån","Fondsobligasjon"]
[null,null,8,"Beløp som inngår i ansvarlig kapital (i millioner NOK fra seneste rapporteringsdato)",125000000,100000000]
[null,null,9,"Instrumentets nominelle verdi",125000000,100000000]
[null,null,"9a","Emisjonskurs",100000,100000]
[null,null,"9b","Innløsningskurs",1,1]
[null,null,10,"Regnskapsmessig klassifisering","Gjeld","Gjeld"]
[null,null,11,"Opprinnelig utstedelsesdato","2018-12-06","2018-12-06"]
[null,null,12,"Evigvarende eller tidsbegrenset","Tidsbegrenset","Evigvarende"]
[null,null,13,"Opprinnelig forfallsdato","2028-12-06","2099-12-06"]
[null,null,14,"Innløsningsrett for utsteder forutsatt samtykke fra Finanstilsynet","Ja","Ja"]
[null,null,15,"Dato for innløsningsrett, eventuell betinget innløsningsrett og innløsningsbeløp","2023-12-06","2023-12-06"]
[null,null,16,"Datoer for eventuell etterfølgende innløsningsrett","Hver Rentebetalingsdato","Hver Rentebetalingsdato"]
[]
[null,null,null,"Renter/utbytte"]
[]
[null,null,17,"Fast eller flytende rente/utbytte","Flytende","Flytende"]
[null,null,18,"Rentesats og eventuell tilknyttet referanserente","NIBOR 3 + 275pkt","NIBOR 3 + 450 pkt"]
[null,null,19,"Vilkår om at det ikke kan betales utbytte hvis det ikke er betalt rente på instrumentet («dividend stopper»)","Nei","Nei"]
[null,null,"20a","Full fleksibilitet, delvis fleksibilitet eller pliktig (med hensyn til tidspunkt)","Pliktig","Pliktig"]
[null,null,"20b","Full fleksibilitet, delvis fleksibilitet eller pliktig (med hensyn til beløp)","Pliktig","Pliktig"]
[null,null,21,"Vilkår om renteøkning eller annet incitament til innfrielse","Nei","Nei"]
[null,null,22,"Ikke-kumulativ eller kumulativ","NA","NA"]
[]
[null,null,null,"Konvertering/nedskrivning"]
[]
[null,null,23,"Konvertibel eller ikke konvertibel","Nei","Nei"]
[null,null,24,"Hvis konvertibel, nivå(er) som utløser konvertering","-","-"]
[null,null,25,"Hvis konvertibel, hel eller delvis","-","-"]
[null,null,26,"Hvis konvertibel, konverteringskurs","-","-"]
[null,null,27,"Hvis konvertibel, pliktig eller valgfri","-","-"]
[null,null,28,"Hvis konvertibel, oppgi instrumenttypen det konverteres til","-","-"]
[null,null,29,"Hvis konvertibel, oppgi utsteder av instrumentene det konverteres til","-","-"]
[null,null,30,"Vilkår om nedskrivning","-","-"]
[null,null,31,"Hvis nedskrivning, nivå som utløser nedskrivning","Nei","Nei"]
[null,null,32,"Hvis nedskrivning, hel eller delvis","-","-"]
[null,null,33,"Hvis nedskrivning, med endelig virkning eller midlertidig","-","-"]
[null,null,34,"Hvis midlertidig nedskrivning, beskrivelse av oppskrivningsmekanismen","-","-"]
[null,null,35,"Prioritetsrekkefølge ved avvikling (oppgi instrumenttypen som har nærmeste bedre prioritet)","-","-"]
[null,null,36,"Vilkår som gjør at instrumentet ikke kan medregnes etter overgangsperioden","Nei","Nei"]
[null,null,37,"Hvis ja, spesifiser hvilke vilkår som ikke oppfyller nye krav","-","-"]

{"sheet":"1.2","index":2,"n_rows":164,"n_cols":5,"rows_kept":164,"cut":false,"hidden":false,"merged":[]}
[]
[]
[]
[]
[null,null,"1.0","Ansvarlig kapital"]
[]
[]
[null,null,"1.2","Skjema for offentliggjøring av sammensetningen av ansvarlig kapital"]
[]
[]
[null,null,null,"Ren kjernekapital: Instrumenter og opptjent kapital","\nBeløp på datoen for offentlig-gjøring"]
[]
[null,null,1,"Kapitalinstrumenter og tilhørende overkursfond",1148758038.46]
[null,null,null,"herav: instrumenttype 1"]
[null,null,null,"herav: instrumenttype 2"]
[null,null,null,"herav: instrumenttype 3"]
[null,null,2,"Opptjent egenkapital i form av tidligere års tilbakeholdte resultater",398734995.27999997]
[null,null,3,"Akkumulerte andre inntekter og kostnader og andre fond o.l."]
[null,null,"3a","Avsetning for generell bankrisiko"]
[null,null,4,"Rene kjernekapitalinstrumenter omfattet av overgangsbestemmelser"]
[null,null,"4a","Statlige innskudd av ren kjernekapital omfattet av overgangsbestemmelser"]
[null,null,5,"Minoritetsinteresser"]
[null,null,"5a","Revidert delårsoverskudd fratrukket påregnelig skatt mv. og utbytte"]
[null,null,6,"Ren kjernekapital før regulatoriske justeringer",{"$f":"SUM(E13:E23)","v":1547493033.74}]
[]
[null,null,null,"Ren kjernekapital: Regulatoriske justeringer"]
[]
[null,null,7,"Verdijusteringer som følge av kravene om forsvarlig verdsettelse",-1463291.88]
[null,null,8,"Immaterielle eiendeler redusert med utsatt skatt (negativt beløp)",-19728777.300000001]
[null,null,9,"Tomt felt i EØS"]
[null,null,10,"Utsatt skattefordel som ikke skyldes midlertidige forskjeller redusert med utsatt skatt som kan motregnes (negativt beløp)"]
[null,null,11,"Verdiendringer på sikringsinstrumenter ved kontantstrømsikring"]
[null,null,12,"Positive verdier av justert forventet tap etter kapitalkravsforskriften § 15-7 (tas inn som negativt beløp)"]
[null,null,13,"Økning i egenkapitalen knyttet til fremtidig inntekt grunnet verdipapiriserte eiendeler (negativt beløp)"]
[null,null,14,"Gevinster eller tap på gjeld målt til virkelig verdi som skyldes endringer i egen kredittverdighet"]
[null,null,15,"Overfinansiering av pensjonsforpliktelser (negativt beløp)"]
[null,null,16,"Direkte, indirekte og syntetiske beholdninger av egne rene kjernekapitalinstrumenter (negativt beløp)"]
[null,null,17,"Beholdning av ren kjernekapital i annet selskap i finansiell sektor som har en gjensidig investering av ansvarlig kapital (negativt beløp)"]
[null,null,18,"Direkte, indirekte og syntetiske beholdninger av ren kjernekapital i andre selskaper i finansiell sektor der institusjonen ikke har en vesentlig investering. Beløp som overstiger grensen på 10 %, regnet etter fradrag som er tillatt for korte posisjoner (negativt beløp)"]
[null,null,19,"Direkte, indirekte og syntetiske beholdninger av ren kjernekapital i andre selskaper i finansiell sektor der institusjonen har vesentlige investeringer som samlet overstiger grensen på 10 %. Beløp regnet etter fradrag som er tillatt for korte posisjoner (negativt beløp)",-269278991]
[null,null,20,"Tomt felt i EØS"]
[null,null,"20a","Poster som alternativt kan få 1250 % risikovekt (negativt beløp)"]
[null,null,"20b","herav: kvalifiserte eiendeler i selskap utenfor finansiell sektor (negativt beløp)"]
[null,null,"20c","herav: verdipapiriseringsposisjoner (negativt beløp)"]
[null,null,"20d","herav: motpartsrisiko for transaksjoner som ikke er avsluttet (negativt beløp)"]
[null,null,21,"Utsatt skattefordel som skyldes midlertidige forskjeller og som overstiger unntaksgrensen på 10 %, redusert med utsatt skatt som kan motregnes (negativt beløp)"]
[null,null,22,"Beløp som overstiger unntaksgrensen på 17,65 % (negativt beløp)"]
[null,null,23,"herav: direkte, indirekte og syntetiske beholdninger av ren kjernekapital i andre selskaper i finansiell sektor der institusjonen har en vesentlig investering (negativt beløp)"]
[null,null,24,"Tomt felt i EØS"]
[null,null,25,"herav: utsatt skattefordel som skyldes midlertidige forskjeller (negativt beløp)"]
[null,null,"25a","Akkumulert underskudd i inneværende regnskapsår (negativt beløp)"]
[null,null,"25b","Påregnelig skatt relatert til rene kjernekapitalposter (negativt beløp)"]
[null,null,26,"Justeringer i ren kjernekapital som følge av overgangsbestemmelser"]
[null,null,"26a","Overgangsbestemmelser for regulatoriske filtre relaterte til urealiserte gevinster og tap"]
[null,null,null,"herav: filter for urealisert tap 1"]
[null,null,null,"herav: filter for urealisert tap 2"]
[null,null,null,"herav: filter for urealisert gevinst 1 (negativt beløp)"]
[null,null,null,"herav: filter for urealisert gevinst 2 (negativt beløp)"]
[null,null,"26b","Beløp som skal trekkes fra eller legges til ren kjernekapital som følge av overgangsbestemmelser for andre filtre og fradrag"]
[null,null,null,"herav: …"]
[null,null,27,"Overskytende fradrag i annen godkjent kjernekapital (negativt beløp)",-6407695.9100000001]
[null,null,28,"Sum regulatoriske justeringer i ren kjernekapital",{"$f":"SUM(E28:E42)+E46+E47+E51+E52+E53+E61","v":-296878756.09000003}]
[null,null,29,"Ren kjernekapital",{"$f":"IF(E62>0,E24-E62,+E24+E62)","v":1250614277.6500001}]
[]
[null,null,null,"Annen godkjent kjernekapital: Instrumenter"]
[]
[null,null,30,"Kapitalinstrumenter og tilhørende overkursfond"]
[null,null,31,"herav: klassifisert som egenkapital etter gjeldende regnskapsstandard"]
[null,null,32,"herav: klassifisert som gjeld etter gjeldende regnskapsstandard"]
[null,null,33,"Fondsobligasjonskapital omfattet av overgangsbestemmelser",100000000]
[null,null,null,"Statlige innskudd av fondsobligasjonskapital omfattet av overgangsbestemmelser"]
[null,null,34,"Fondsobligasjonskapital utstedt av datterselskaper til tredjeparter som kan medregnes i annen godkjent kjernekapital"]
[null,null,35,"herav: instrumenter omfattet av overgangsbestemmelser"]
[null,null,36,"Annen godkjent kjernekapital før regulatoriske justeringer",{"$f":"E67+E70+E72","v":100000000}]
[]
[null,null,null,"Annen godkjent kjernekapital: Regulatoriske justeringer"]
[]
[null,null,37,"Direkte, indirekte og syntetiske beholdninger av egen fondsobligasjonskapital (negativt beløp)"]
[null,null,38,"Beholdning av annen godkjent kjernekapital i annet selskap i finansiell sektor som har en gjensidig investering av ansvarlig kapital (negativt beløp)"]
[null,null,39,"Direkte, indirekte og syntetiske beholdninger av fondsobligasjonskapital i andre selskaper i finansiell sektor der institusjonen ikke har en vesentlig investering. Beløp som overstiger grensen på 10 %, regnet etter fradrag som er tillatt for korte posisjoner (negativt beløp)"]
[null,null,40,"Direkte, indirekte og syntetiske beholdninger av fondsobligasjonskapital i andre selskaper i finansiell sektor der institusjonen har en vesentlig investering. Beløp regnet etter fradrag som er tillatt for korte posisjoner (negativt beløp)"]
[null,null,41,"Justeringer i annen godkjent kjernekapital som følge av overgangsbestemmelser"]
[null,null,"41a","Fradrag som skal gjøres i annen godkjent kjernekapital, i stedet for ren kjernekapital, som følge av overgangsbestemmelser (negativt beløp)"]
[null,null,null,"herav: spesifiser de enkelte postene linje for linje"]
[null,null,"41b","Fradrag som skal gjøres i annen godkjent kjernekapital, i stedet for tilleggskapital, som følge av overgangsbestemmelser (negativt beløp) "]
[null,null,null,"herav: spesifiser de enkelte postene linje for linje"]
[null,null,"41c","Beløp som skal trekkes fra eller legges til annen godkjent kjernekapital som følge av overgangsbestemmelser for andre filtre og fradrag"]
[null,null,null,"herav: filter for urealisert tap"]
[null,null,null,"herav: filter for urealisert gevinst (negativt beløp)"]
[null,null,null,"herav: …"]
[null,null,42,"Overskytende fradrag i tilleggskapital (negativt beløp)"]
[null,null,43,"Sum regulatoriske justeringer i annen godkjent kjernekapital",{"$f":"SUM(E78:E82)+E91","v":0}]
[null,null,44,"Annen godkjent kjernekapital",{"$f":"+E74+E92","v":100000000}]
[null,null,45,"Kjernekapital",{"$f":"+E63+E93","v":1350614277.6500001}]
[]
[null,null,null,"Tilleggskapital: Instrumenter og avsetninger"]
[]
[null,null,46,"Kapitalinstrumenter og tilhørende overkursfond"]
[null,null,47,"Tilleggskapital omfattet av overgangsbestemmelser",125000000]
[null,null,null,"Statlige innskudd av tilleggskapital omfattet av overgangsbestemmelser"]
[null,null,48,"Ansvarlig lånekapital utstedt av datterselskaper til tredjeparter som kan medregnes i tilleggskapitalen"]
[null,null,49,"herav: instrumenter omfattet av overgangsbestemmelser"]
[null,null,50,"Tallverdien av negative verdier av justert forventet tap"]
[null,null,51,"Tilleggskapital før regulatoriske justeringer",{"$f":"SUM(E98:E101)+E103","v":125000000}]
[]
[null,null,null,"Tilleggskapital: Regulatoriske justeringer"]
[]
[null,null,52,"Direkte, indirekte og syntetiske beholdninger av egen ansvarlig lånekapital (negativt beløp)"]
[null,null,53,"Beholdning av tilleggskapital i annet selskap i finansiell sektor som har en gjensidig investering av ansvarlig kapital (negativt beløp)"]
[null,null,54,"Direkte, indirekte og syntetiske beholdninger av ansvarlig lånekapital i andre selskaper i finansiell sektor der institusjonen ikke har en vesentlig investering. Beløp som overstiger grensen på 10 %, regnet etter fradrag som er tillatt for korte posisjoner (negativt beløp)"]
[null,null,"54a","herav: nye beholdninger som ikke omfattes av overgangsbestemmelser"]
[null,null,"54b","herav: beholdninger fra før 1. januar 2013 omfattet av overgangsbestemmelser"]
[null,null,55,"Direkte, indirekte og syntetiske beholdninger av ansvarlig lånekapital i andre selskaper i finansiell sektor der institusjonen har en vesentlig investering. Beløp regnet etter fradrag som er tillatt for korte posisjoner (negativt beløp)"]
[null,null,56,"Justeringer i tilleggskapital som følge av overgangsbestemmelser (negativt beløp)"]
[null,null,"56a","Fradrag som skal gjøres i tilleggskapital, i stedet for ren kjernekapital, som følge av overgangsbestemmelser (negativt beløp)"]
[null,null,null,"herav: spesifiser de enkelte postene linje for linje"]
[null,null,"56b","Fradrag som skal gjøres i tilleggskapital, i stedet for annen godkjent kjernekapital, som følge av overgangsbestemmelser (negativt beløp)"]
[null,null,null,"herav: spesifiser de enkelte postene linje for linje"]
[null,null,"56c","Beløp som skal trekkes fra eller legges til tilleggskapitalen som følge av overgangsbestemmelser for filtre og andre fradrag"]
[null,null,57,"Sum regulatoriske justeringer i tilleggskapital",{"$f":"SUM(E108:E110)+E113+E114","v":0}]
[null,null,58,"Tilleggskapital",{"$f":"IF(E120>0,E104-E120,E104+E120)","v":125000000}]
[null,null,59,"Ansvarlig kapital",{"$f":"E94+E121","v":1475614277.6500001}]
[null,null,"59a","Økning i beregningsgrunnlaget som følge av overgangsbestemmelser"]
[null,null,null,"herav: beløp som ikke er trukket fra ren kjernekapital"]
[null,null,null,"herav: beløp som ikke er trukket fra annen godkjent kjernekapital"]
[null,null,null,"herav: beløp som ikke er trukket fra tilleggskapital"]
[null,null,60,"Beregningsgrunnlag",6133694685]
[]
[null,null,null,"Kapitaldekning og buffere"]
[]
[null,null,61,"Ren kjernekapitaldekning",{"$f":"+E63/E127","v":0.20389248925421533}]
[null,null,62,"Kjernekapitaldekning",{"$f":"+E94/E127","v":0.22019587654940476}]
[null,null,63,"Kapitaldekning",{"$f":"+E122/E127","v":0.24057511066839155}]
[null,null,64,"Kombinert bufferkrav som prosent av beregningsgrunnlaget",7.4999999999999997E-2]
[null,null,65,"herav: bevaringsbuffer",2.5000000000000001E-2]
[null,null,66,"herav: motsyklisk buffer",0.01]
[null,null,67,"herav: systemrisikobuffer",0.03]
[null,null,"67a","herav: buffer for andre systemviktige institusjoner (O-SII-buffer)",0]
[null,null,68,"Ren kjernekapital tilgjengelig for oppfyllelse av bufferkrav",{"$f":"(E63-(E135*E127)-(E127*E136)-(E127*E137))/E127","v":0.13889248925421532}]
[null,null,69,"Ikke relevant etter EØS-regler"]
[null,null,70,"Ikke relevant etter EØS-regler"]
[null,null,71,"Ikke relevant etter EØS-regler"]
[]
[null,null,null,"Kapitaldekning og buffere"]
[]
[null,null,72,"Beholdninger av ansvarlig kapital i andre selskaper i finansiell sektor der institusjonen har en ikke vesentlig investering, som samlet er under grensen på 10 %. Beløp regnet etter fradrag som er tillatt for korte posisjoner.",5784644]
[null,null,73,"Beholdninger av ren kjernekapital i andre selskaper i finansiell sektor der institusjonen har en vesentlig investering, som samlet er under grensen på 10 %. Beløp regnet etter fradrag som er tillatt for korte posisjoner.",149042322]
[null,null,74,"Tomt felt i EØS"]
[null,null,75,"Utsatt skattefordel som skyldes midlertidige forskjeller redusert med utsatt skatt som kan motregnes, som er under grensen på 10 %."]
[]
[null,null,null,"Grenser for medregning av avsetninger i tilleggskapitalen"]
[null,null,76,"Generelle kredittrisikoreserver",0]
[null,null,77,"Grense for medregning av generelle kredittrisikoreserver i tilleggskapitalen"]
[null,null,78,"Tallverdien av negative verdier av justert forventet tap"]
[null,null,79,"Grense for medregning i tilleggskapitalen av overskytende regnskapsmessige nedskrivninger"]
[]
[null,null,null,"Kapitalinstrumenter omfattet av overgangsbestemmelser"]
[]
[null,null,80,"Grense for medregning av rene kjernekapitalinstrumenter omfattet av overgangsbestemmelser"]
[null,null,81,"Overskytende ren kjernekapital omfattet av overgangsbestemmelser",0]
[null,null,82,"Grense for medregning av fondsobligasjonskapital omfattet av overgangsbestemmelser"]
[null,null,83,"Overskytende fondsobligasjonskapital omfattet av overgangsbestemmelser"]
[null,null,84,"Grense for medregning av ansvarlig lånekapital omfattet av overgangsbestemmelser"]
[null,null,85,"Overskytende ansvarlig lånekapital omfattet av overgangsbestemmelser"]

{"sheet":"2.1","index":3,"n_rows":22,"n_cols":5,"rows_kept":22,"cut":false,"hidden":false,"merged":[]}
[]
[]
[]
[]
[null,null,"2.0","Uvektet kjernekapitalandel"]
[]
[]
[null,null,"2.1","Table LRSum: Summary reconciliation of accounting assets and leverage ratio exposures"]
[]
[]
[null,null,null,"Table LRSum: Summary reconciliation of accounting assets and leverage ratio exposures","Applicable amount"]
[]
[null,null,1,"Total assets as per published financial statements",12696244215.27]
[null,null,2,"Adjustment for entities which are consolidated for accounting purposes but are outside the scope of regulatory consolidation",-6132212148.3000002]
[null,null,3,"(Adjustment for fiduciary assets recognised on the balance sheet pursuant to the applicable accounting framework but excluded from the leverage ratio total exposure measure in accordance with Article 429(13) of Regulation (EU) No 575/2013)",0]
[null,null,4,"Adjustments for derivative financial instruments",0]
[null,null,5,"Adjustment for securities financing transactions (SFTs)",0]
[null,null,6,"Adjustment for off-balance sheet items (ie conversion to credit equivalent amounts of off-balance sheet exposures)",959592968]
[null,null,"EU-6a","(Adjustment for intragroup exposures excluded from the leverage ratio total exposure measure in accordance with Article 429(7) of Regulation (EU) No 575/2013)"]
[null,null,"EU-6b","(Adjustment for exposures excluded from the leverage ratio total exposure measure in accordance with Article 429(14) of Regulation (EU) No 575/2013)",0]
[null,null,7,"Other adjustments",736311351.02999973]
[null,null,8,"Leverage ratio total exposure measure",{"$f":"E13+E14+E18+E21","v":8259936386}]

{"sheet":"2.2","index":4,"n_rows":63,"n_cols":5,"rows_kept":63,"cut":false,"hidden":false,"merged":[]}
[]
[]
[]
[]
[null,null,"2.0","Uvektet kjernekapitalandel"]
[]
[]
[null,null,"2.2","Table LRCom: Leverage ratio common disclosure"]
[]
[]
[null,null,null,"On-balance sheet exposures (excluding derivatives and SFTs)","CRR leverage ratio exposures"]
[]
[null,null,1,"On-balance sheet items (excluding derivatives, SFTs and fiduciary assets, but including collateral)",7300343418]
[null,null,2,"(Asset amounts deducted in determining Tier 1 capital)"]
[null,null,3,"Total on-balance sheet exposures (excluding derivatives, SFTs and fiduciary assets) (sum of lines 1 and 2)",{"$f":"E13+E14","v":7300343418}]
[]
[]
[null,null,null,"Derivative exposures","CRR leverage ratio exposures"]
[]
[null,null,4,"Replacement cost associated with all derivatives transactions (ie net of eligible cash variation margin)"]
[null,null,5,"Add-on amounts for PFE associated with all derivatives transactions (mark- to-market method)"]
[null,null,"EU-5a","Exposure determined under Original Exposure Method"]
[null,null,6,"Gross-up for derivatives collateral provided where deducted from the balance sheet assets pursuant to the applicable accounting framework"]
[null,null,7,"(Deductions of receivables assets for cash variation margin provided in derivatives transactions)"]
[null,null,8,"(Exempted CCP leg of client-cleared trade exposures)"]
[null,null,9,"Adjusted effective notional amount of written credit derivatives"]
[null,null,10,"(Adjusted effective notional offsets and add-on deductions for written credit derivatives)"]
[null,null,11,"Total derivatives exposures (sum of lines 4 to 10)",0]
[]
[]
[null,null,null,"SFT exposures","CRR leverage ratio exposures"]
[]
[null,null,12,"Gross SFT assets (with no recognition of netting), after adjusting for sales accounting transactions"]
[null,null,13,"(Netted amounts of cash payables and cash receivables of gross SFT assets)"]
[null,null,14,"Counterparty credit risk exposure for SFT assets"]
[null,null,"EU-14a","Derogation for SFTs: Counterparty credit risk exposure in accordance with Articles 429b(4) and 222 of Regulation (EU) No 575/2013"]
[null,null,15,"Agent transaction exposures"]
[null,null,"EU-15a","(Exempted CCP leg of client-cleared SFT exposure)"]
[null,null,16,"Total securities financing transaction exposures (sum of lines 12 to 15a)",0]
[]
[]
[null,null,null,"Other off-balance sheet exposures","CRR leverage ratio exposures"]
[]
[null,null,17,"Off-balance sheet exposures at gross notional amount",959592968]
[null,null,18,"(Adjustments for conversion to credit equivalent amounts)",0]
[null,null,19,"Other off-balance sheet exposures (sum of lines 17 and 18)",{"$f":"E44+E45","v":959592968}]
[]
[]
[null,null,null,"Exempted exposures in accordance with Article 429(7) and (14) of Regulation (EU) No 575/2013 (on and off balance sheet)","CRR leverage ratio exposures"]
[]
[null,null,"EU-19a","(Intragroup exposures (solo basis) exempted in accordance with Article 429(7) of Regulation (EU) No 575/2013 (on and off balance sheet))"]
[null,null,"EU-19b","(Exposures exempted in accordance with Article 429 (14) of Regulation (EU) No 575/2013 (on and off balance sheet))",0]
[]
[]
[null,null,null,"Capital and total exposure measure","CRR leverage ratio exposures"]
[]
[null,null,20,"Tier 1 capital",1350614278]
[null,null,21,"Leverage ratio total exposure measure (sum of lines 3, 11, 16, 19, EU-19a and EU-19b)",{"$f":"E15+E28+E39+E46+E51+E52","v":8259936386}]
[]
[]
[null,null,null,"Leverage ratio","CRR leverage ratio exposures"]
[]
[null,null,22,"Leverage ratio",{"$f":"E57/E58","v":0.16351388374966111}]

{"sheet":"2.3","index":5,"n_rows":24,"n_cols":5,"rows_kept":24,"cut":false,"hidden":false,"merged":[[8,2,8,4]]}
[]
[]
[]
[]
[null,null,"2.0","Uvektet kjernekapitalandel"]
[]
[]
[null,null,"2.3","Table LRSpl: Split-up of on balance sheet exposures (excluding derivatives, SFTs and exempted exposures)"]
[]
[]
[null,null,null,"Table LRSpl","CRR leverage ratio exposures"]
[]
[null,null,"EU-1","Total on-balance sheet exposures (excluding derivatives, SFTs, and exempted exposures), of which:",{"$f":"E14+E15","v":7300253418}]
[null,null,"EU-2","Trading book exposures",0]
[null,null,"EU-3","Banking book exposures, of which:",{"$f":"SUM(E16:E24)","v":7300253418}]
[null,null,"EU-4","Covered bonds",151783790]
[null,null,"EU-5","Exposures treated as sovereigns",113677410]
[null,null,"EU-6","Exposures to regional governments, MDB, international organisations and PSE not treated as sovereigns",405009514]
[null,null,"EU-7","Institutions",2179507153]
[null,null,"EU-8","Secured by mortgages of immovable properties",0]
[null,null,"EU-9","Retail exposures",2769026064]
[null,null,"EU-10","Corporate",679219980]
[null,null,"EU-11","Exposures in default",38705459]
[null,null,"EU-12","Other exposures (eg equity, securitisations, and other non-credit obligation assets)",963324048]

{"sheet":"3.0","index":6,"n_rows":61,"n_cols":12,"rows_kept":61,"cut":false,"hidden":false,"merged":[[11,4,12,5],[11,6,12,7],[11,8,12,9],[11,10,12,11],[28,4,29,5],[28,6,28,7],[29,6,29,7],[29,8,30,8]]}
[]
[]
[]
[]
[null,null,"3.0","Pantsatte og ikke-pantsatte eiendeler"]
[]
[]
[]
[]
[]
[null,null,"Template A - Encumbered and unencumbered assets"]
[null,null,null,null,"Carrying amount of encumbered assets",null,"Fair value of encumbered assets",null,"Carrying amount of unencumbered assets",null,"Fair value of unencumbered assets"]
[]
[null,null,null,null,null,"of which notionally elligible EHQLA and HQLA",null,"of which notionally elligible EHQLA and HQLA",null,"of which EHQLA and HQLA",null,"of which EHQLA and HQLA"]
[null,null,null,null,"010","030","040","050","060","080","090","100"]
[null,null,"010","Assets of the reporting institution",null,null,null,null,12696244215.27]
[null,null,"030","Equity instruments",null,null,null,null,302823916,45498874,302823916,45498874]
[null,null,"040","Debt securities",null,null,null,null,1007289856,501907861,{"$f":"I18","v":1007289856},{"$f":"SUM(L19:L22)","v":491891290}]
[null,null,"050","of which: covered bonds",null,null,null,null,152025816,{"$f":"I19","v":152025816},{"$f":"I19","v":152025816},{"$f":"K19","v":152025816}]
[null,null,"060","of which: asset-backed securities"]
[null,null,"070","of which: issued by general governments",null,null,null,null,357881314,339865474,{"$f":"I21","v":357881314},{"$f":"J21","v":339865474}]
[null,null,"080","of which: issued by financial corporations",null,null,null,null,487366155,0,487366155,{"$f":"J22","v":0}]
[null,null,"090","of which: issued by non-financial corporations",null,null,null,null,10016571,{"$f":"I23","v":10016571},10016571,{"$f":"J23","v":10016571}]
[null,null,"120","Other assets",null,null,null,null,{"$f":"I16-I25","v":10013766329.060001}]
[null,null,121,"of which: Loans",null,null,null,null,2682477886.21]
[]
[]
[null,null,"Template B - Collateral received"]
[null,null,null,null,"Fair value of encumbered collateral received or own debt securities issued",null,"Unencumbered"]
[null,null,null,null,null,null,"Fair value of collateral received or own debt securities issued available for encumbrance"]
[null,null,null,null,null,"of which notionally elligible EHQLA and HQLA",null,"of which EHQLA and HQLA"]
[null,null,null,null,"010","030","040","060"]
[null,null,130,"Collateral received by the reporting institution"]
[null,null,140,"Loans on demand"]
[null,null,150,"Equity instruments"]
[null,null,160,"Debt securities"]
[null,null,170,"of which: covered bonds"]
[null,null,180,"of which: asset-backed securities"]
[null,null,190,"of which: issued by general governments"]
[null,null,200,"of which: issued by financial corporations"]
[null,null,210,"of which: issued by non-financial corporations"]
[null,null,220,"Loans and advances other than loans on demand"]
[null,null,230,"Other collateral received"]
[null,null,231,"of which: …"]
[null,null,240,"Own debt securities issued other than own covered bonds or asset-backed securities"]
[null,null,241," Own covered bonds and asset-backed securities issued and not yet pledged"]
[null,null,250,"TOTAL ASSETS, COLLATERAL RECEIVED AND OWN DEBT SECURITIES ISSUED "]
[]
[]
[null,null,"Template C - Sources of encumbrance"]
[null,null,null,null,"Matching liabilities, contingent liabilities or securities lent","Assets, collateral received and own debt securities issued other than covered bonds and ABSs encumbered"]
[null,null,null,null,"010","030"]
[]
[null,null,"011","of which: …"]
[null,null,null,"Derivatives"]
[null,null,null,"Repurchase agreements"]
[null,null,null,"Collateralised deposits other than repurchase agreements"]
[null,null,null,"Debt securities issued: covered bonds "]
[]
[]
[null,null,"Template D - Accompanying narrative information",null," ","     ",null,null,null,null,null,"      "]

{"sheet":"4.0","index":7,"n_rows":45,"n_cols":6,"rows_kept":45,"cut":false,"hidden":false,"merged":[[8,2,8,4],[10,2,11,3],[12,2,12,5],[16,2,16,3],[34,2,34,3]]}
[]
[]
[]
[]
[null,null,"4.0","LCR"]
[]
[]
[null,null,"4.0","LCR - Gjennomsnitt siste 12 måneder"]
[]
[]
[null,null,"Amounts in NOK",null,"a","b"]
[null,null,null,null,"Total unweighted value\n(average)","Total weighted value\n(average)"]
[null,null,"High-quality liquid assets"]
[]
[null,null,1,"Total HQLA",563635200.02227366,511867843.60574156]
[]
[null,null,"Cash Outflows"]
[]
[null,null,2,"Retail deposits and deposits from small business customers, of which:",4331213609.2808533,528698343.11725193]
[null,null,3,"Stable deposits",0,0]
[null,null,4,"Less stable deposits",4331213609.2808533,528698343.11725193]
[null,null,5,"Unsecured wholesale funding, of which:",0,0]
[null,null,6,"Operational deposits (all counterparties) and deposits in networks of cooperative banks"]
[null,null,7,"Non-operational deposits (all counterparties)"]
[null,null,8,"Unsecured debt"]
[null,null,9,"Secured wholesale funding"]
[null,null,10,"Additional requirements, of which:"]
[null,null,11,"Outflows related to derivative exposures and other collateral requirements"]
[null,null,12,"Outflows related to loss of funding on debt products"]
[null,null,13,"Credit and liquidity facilities",9534895185.583334,556016822.45866668]
[null,null,14,"Other contractual funding obligations",72431503.393333346,72431503.393333346]
[null,null,15,"Other contingent funding obligations",66481696.583333336,0]
[null,null,16,"TOTAL CASH OUTFLOWS",14005021994.840857,1157146668.9692519]
[]
[null,null,"Cash inflows"]
[]
[null,null,17,"Secured lending (eg reverse repos)",0,0]
[null,null,18,"Inflows from fully performing exposures",1803618947.4061081,1142744986.4489]
[null,null,19,"Other cash inflows",0,0]
[null,null,20,"TOTAL CASH INFLOWS",1803618947.4061081,1142744986.4489]
[]
[null,null,null,null,null,"Total adjusted value"]
[null,null,21,"Total HQLA",null,468225369.53048086]
[null,null,22,"Total net cash outflows",null,297316170.15754205]
[null,null,23,"Liquidity Coverage Ratio (%)",null,1.5748399062263494]

{"sheet":"5.0","index":8,"n_rows":27,"n_cols":16,"rows_kept":27,"cut":false,"hidden":false,"merged":[[10,8,10,9],[10,10,10,13],[10,14,11,14],[10,15,11,15],[10,2,11,2],[10,3,11,3],[10,4,10,5],[10,6,10,7]]}
[]
[]
[]
[]
[null,null,"5.0","Offentliggjøring av opplysninger om motsyklisk kapitalbufferkrav"]
[]
[]
[null,null,"Tabell 1"]
[null,null,"Geografisk fordeling av relevante kredittengasjementer"]
[]
[null,null,"Rad",null,"Generelle kredittengasjementer",null,"Engasjementer i handelsporteføljen",null,"Verdipapiriseringsengasjementer",null,"Kapitalkrav",null,null,null,"Vekter for kapitalkrav","Motsyklisk kapitalbuffersats"]
[null,null,null,null,"Engasjementsbeløp for SA","Engasjementsbeløp for IRB","Summen av lange og korte posisjoner i handelsporteføljen","Verdien av engasjementer i handelsporteføljen for interne modeller","Engasjementsbeløp for SA","Engasjementsbeløp for IRB","Herav: Generelle kredittengasjementer","Herav: Engasjementer i handelsporteføljen","Herav: Verdipapiriseringsengasjementer","Totalt"]
[null,null,null,null,"010","020","030","040","050","060","070","080","090","100","110","120"]
[null,null,"010","Inndeling etter land"]
[null,null,null,"Norge",13767558849,0,0,0,0,0,1101404708,0,0,{"$f":"K15+L15+M15","v":1101404708},0.08,0.01]
[null,null,null,"Danmark",186824765,0,0,0,0,0,14945981,0,0,{"$f":"K16+L16+M16","v":14945981},0.08,0]
[null,null,"020","Totalt",{"$f":"E15+E16","v":13954383614},0,0,0,0,0,{"$f":"K15+K16","v":1116350689},0,0,{"$f":"K17+L17+M17","v":1116350689},{"$f":"O15","v":0.08},{"$f":"(K15/K17)*P15+(K16/K17)*P16","v":9.8661175099610653E-3}]
[]
[]
[null,null,"Tabell 2"]
[null,null,"Størrelsen på foretaksspesifikk motsyklisk kapitalbuffer"]
[]
[null,null,"Rad",null,null,"Kolonne"]
[null,null,null,null,null,"010"]
[null,null,"010","Samlet beregningsgrunnlag",null,{"$f":"E17","v":13954383614}]
[null,null,"020","Foretaksspesifikk motsyklisk kapitalbuffersats",null,{"$f":"P17","v":9.8661175099610653E-3}]
[null,null,"030","Krav til foretaksspesifikk motsyklisk kapitalbuffer",null,{"$f":"F25*F26","v":137675588.51479918}]